[Event "Reykjavik Open 2025"]
[Site "Reykjavik"]
[Date "2025.04.11"]
[Round "4.22"]
[White "Yu, Tianxiang Carlos"]
[Black "Unzicker, Ferdinand"]
[Result "0-1"]
[Annotator "ChessBase"]
[ECO "B61"]
[WhiteElo "1843"]
[BlackElo "2241"]
[PlyCount "82"]
[EventDate "2025.04.09"]
[EventType "swiss"]
[EventCountry "ISL"]
[SourceTitle "playchess.com"]
[Source "ChessBase"]
[SourceQuality "1"]
[TimeControl "40/5400+30:1800+30"]

1. e4 {[%emt 0:05:21]} c5 {[%emt 0:00:17]} 2. Nf3 {[%emt 0:00:24]} d6 {[%emt 0:00:09]} 3. d4 {[%emt 0:00:13]} cxd4 {[%emt 0:00:10]} 4. Nxd4 {[%emt 0:00:04]} Nf6 {[%emt 0:00:10]} 5. Nc3 {[%emt 0:00:02]} Nc6 {[%emt 0:00:07]} 6. Bg5 {[%emt 0:00:08]} Bd7 {[%emt 0:00:07]} 7. Qd2 {[%emt 0:00:34]} h6 {[%emt 0:00:29]} 8. Bxf6 {[%emt 0:01:06]} gxf6 {[%emt 0:00:03]} 9. O-O-O {[%emt 0:02:58]} Nxd4 {[%emt 0:00:05]} 10. Qxd4 {[%emt 0:00:05]} Qa5 {[%emt 0:00:04]} 11. Kb1 {[%emt 0:01:24]} Rc8 {[%emt 0:00:19]} 12. Be2 {[%emt 0:03:26]} Qc5 {[%emt 0:00:57]} 13. Rhe1 {[%emt 0:08:40]} Bg7 {[%emt 0:07:23]} 14. Qxc5 {[%emt 0:05:21]} Rxc5 {[%emt 0:01:27]} 15. Nd5 {[%emt 0:15:47]} e6 {[%emt 0:05:43]} 16. Ne3 {[%emt 0:02:20]} Ke7 {[%emt 0:08:25]} 17. f4 {[%emt 0:02:27]} b5 {[%emt 0:06:46]} 18. f5 {[%emt 0:04:29]} h5 {[%emt 0:02:12]} 19. h4 {[%emt 0:07:33]} Bh6 {[%emt 0:00:41]} 20. Bf3 {[%emt 0:02:47]} Bf4 {[%emt 0:00:57]} 21. Rd3 {[%emt 0:02:56]} a5 {[%emt 0:08:11]} 22. Rc1 {[%emt 0:02:58]} b4 {[%emt 0:05:01]} 23. c4 {[%emt 0:01:09]} Rhc8 {[%emt 0:03:42]} 24. b3 {[%emt 0:04:07]} Bc6 {[%emt 0:06:05]} 25. Re1 {[%emt 0:02:54]} Re5 {[%emt 0:03:07]} 26. Nc2 {[%emt 0:01:35]} Bg3 {[%emt 0:02:36]} 27. Rh1 {[%emt 0:00:09]} Bf2 {[%emt 0:03:02]} 28. Rd2 {[%emt 0:00:58]} Bc5 {[%emt 0:02:26]} 29. Re1 {[%emt 0:02:05]} Rg8 {[%emt 0:04:19]} 30. fxe6 {[%emt 0:03:19]} fxe6 {[%emt 0:00:11]} 31. Ree2 {[%emt 0:00:32]} a4 {[%emt 0:07:58]} 32. Ne1 {[%emt 0:00:45]} f5 {[%emt 0:04:55]} 33. Nd3 {[%emt 0:01:02]} Bxe4 {[%emt 0:00:28]} 34. Bxe4 {[%emt 0:00:09]} Rxe4 {[%emt 0:00:13]} 35. Rxe4 {[%emt 0:00:31]} fxe4 {[%emt 0:00:03]} 36. Nxc5 {[%emt 0:00:05]} dxc5 {[%emt 0:00:07]} 37. bxa4 {[%emt 0:00:17]} Kf6 {[%emt 0:04:54]} 38. a3 {[%emt 0:08:54]} Rb8 {[%emt 0:05:08]} 39. Rb2 {[%emt 0:05:24]} e3 {[%emt 0:05:34]} 40. axb4 {[%emt 0:01:56]} Rxb4 {[%emt 0:01:31]} 41. Rxb4 {[%emt 0:31:49]} e2 {[%emt 0:30:12]} 0-1

[Event "Reykjavik Open 2025"]
[Site "Reykjavik"]
[Date "2025.04.11"]
[Round "4.23"]
[White "Wan, Joseph"]
[Black "Koperski, Dustin"]
[Result "1-0"]
[Annotator "ChessBase"]
[ECO "D01"]
[WhiteElo "2242"]
[BlackElo "1793"]
[PlyCount "71"]
[EventDate "2025.04.09"]
[EventType "swiss"]
[EventCountry "ISL"]
[SourceTitle "playchess.com"]
[Source "ChessBase"]
[SourceQuality "1"]
[TimeControl "40/5400+30:1800+30"]

1. d4 {[%emt 0:05:18]} Nf6 {[%emt 0:00:16]} 2. Bg5 {[%emt 0:00:42]} d5 {[%emt 0:04:43]} 3. Nc3 {[%emt 0:03:44]} Bf5 {[%emt 0:03:58]} 4. f3 {[%emt 0:01:16]} Nbd7 {[%emt 0:03:09]} 5. Nxd5 {[%emt 0:03:11]} Nxd5 {[%emt 0:02:43]} 6. e4 {[%emt 0:00:08]} h6 {[%emt 0:01:41]} 7. Bc1 {[%emt 0:04:17]} Bxe4 {[%emt 0:01:26]} 8. fxe4 {[%emt 0:00:11]} N5b6 {[%emt 0:00:32]} 9. Nf3 {[%emt 0:01:14]} e6 {[%emt 0:00:40]} 10. Bd3 {[%emt 0:01:27]} Be7 {[%emt 0:01:13]} 11. O-O {[%emt 0:00:09]} c5 {[%emt 0:08:26]} 12. c3 {[%emt 0:00:43]} cxd4 {[%emt 0:00:13]} 13. cxd4 {[%emt 0:00:15]} O-O {[%emt 0:00:39]} 14. e5 {[%emt 0:06:11]} Rc8 {[%emt 0:03:56]} 15. Qe2 {[%emt 0:00:31]} Re8 {[%emt 0:07:45]} 16. Bd2 {[%emt 0:05:36]} Nd5 {[%emt 0:03:11]} 17. Qe4 {[%emt 0:08:30]} Nf8 {[%emt 0:00:16]} 18. Qg4 {[%emt 0:00:05]} f5 {[%emt 0:04:33]} 19. exf6 {[%emt 0:02:46]} Nxf6 {[%emt 0:00:20]} 20. Qh3 {[%emt 0:01:33]} Qd5 {[%emt 0:01:58]} 21. b3 {[%emt 0:00:47]} Qh5 {[%emt 0:03:22]} 22. Qg3 {[%emt 0:01:05]} Qg4 {[%emt 0:03:08]} 23. Qe5 {[%emt 0:02:37]} Qh5 {[%emt 0:03:08]} 24. Qg3 {[%emt 0:00:15]} Qg4 {[%emt 0:00:21]} 25. Qe5 {[%emt 0:00:04]} Qh5 {[%emt 0:00:17]} 26. Qe2 {[%emt 0:00:32]} Bd6 {[%emt 0:01:12]} 27. Rae1 {[%emt 0:01:19]} Ng4 {[%emt 0:08:14]} 28. h3 {[%emt 0:09:10]} Nf6 {[%emt 0:00:40]} 29. Qf2 {[%emt 0:00:06]} Nd5 {[%emt 0:04:06]} 30. Ne5 {[%emt 0:03:34]} Bxe5 {[%emt 0:14:11]} 31. Rxe5 {[%emt 0:00:49]} g5 {[%emt 0:00:03]} 32. Bxg5 {[%emt 0:08:03]} hxg5 {[%emt 0:03:24]} 33. Qg3 {[%emt 0:00:59]} Nh7 {[%emt 0:01:10]} 34. Bxh7+ {[%emt 0:00:10]} Qxh7 {[%emt 0:01:00]} 35. Rxg5+ {[%emt 0:00:04]} Kh8 {[%emt 0:00:35]} 36. Qe5+ {[%emt 0:00:03]} 1-0

[Event "Reykjavik Open 2025"]
[Site "Reykjavik"]
[Date "2025.04.11"]
[Round "4.24"]
[White "Vogt, Lothar"]
[Black "Chompas, Vasileios"]
[Result "1-0"]
[Annotator "ChessBase"]
[ECO "C70"]
[WhiteElo "2229"]
[BlackElo "1711"]
[PlyCount "115"]
[EventDate "2025.04.09"]
[EventType "swiss"]
[EventCountry "ISL"]
[SourceTitle "playchess.com"]
[Source "ChessBase"]
[SourceQuality "1"]
[TimeControl "40/5400+30:1800+30"]

1. e4 {[%emt 0:00:04]} e5 {[%emt 0:00:07]} 2. Nf3 {[%emt 0:00:17]} Nc6 {[%emt 0:00:05]} 3. Bb5 {[%emt 0:00:06]} g6 {[%emt 0:00:06]} 4. c3 {[%emt 0:00:49]} a6 {[%emt 0:00:14]} 5. Ba4 {[%emt 0:00:10]} Bg7 {[%emt 0:00:20]} 6. d4 {[%emt 0:00:46]} exd4 {[%emt 0:00:14]} 7. cxd4 {[%emt 0:00:03]} b5 {[%emt 0:00:19]} 8. Bb3 {[%emt 0:04:23]} Nge7 {[%emt 0:00:58]} 9. d5 {[%emt 0:07:04]} Na5 {[%emt 0:01:09]} 10. Bd2 {[%emt 0:00:08]} Nxb3 {[%emt 0:06:51]} 11. Qxb3 {[%emt 0:00:54]} d6 {[%emt 0:01:41]} 12. Bc3 {[%emt 0:00:30]} O-O {[%emt 0:01:59]} 13. Bxg7 {[%emt 0:02:33]} Kxg7 {[%emt 0:00:25]} 14. O-O {[%emt 0:00:13]} Bb7 {[%emt 0:04:45]} 15. Nc3 {[%emt 0:09:45]} c6 {[%emt 0:07:40]} 16. dxc6 {[%emt 0:01:05]} Bxc6 {[%emt 0:00:31]} 17. Rfd1 {[%emt 0:00:27]} Qc7 {[%emt 0:07:40]} 18. Rac1 {[%emt 0:05:12]} Qb7 {[%emt 0:04:33]} 19. Qb4 {[%emt 0:02:47]} a5 {[%emt 0:13:00]} 20. Qxd6 {[%emt 0:02:04]} b4 {[%emt 0:00:54]} 21. Nd5 {[%emt 0:02:12]} Bxd5 {[%emt 0:02:28]} 22. exd5 {[%emt 0:00:29]} Rfd8 {[%emt 0:05:31]} 23. Qe5+ {[%emt 0:04:52]} f6 {[%emt 0:06:14]} 24. Rc7 {[%emt 0:05:27]} fxe5 {[%emt 0:00:47]} 25. Rxb7 {[%emt 0:00:03]} Kf6 {[%emt 0:02:41]} 26. Rb6+ {[%emt 0:07:39]} Kf5 {[%emt 0:01:57]} 27. d6 {[%emt 0:00:45]} Nc8 {[%emt 0:03:00]} 28. Rc6 {[%emt 0:02:46]} Ra7 {[%emt 0:01:54]} 29. Rd5 {[%emt 0:05:05]} Rad7 {[%emt 0:05:26]} 30. Rxe5+ {[%emt 0:02:39]} Kf6 {[%emt 0:00:17]} 31. Rxa5 {[%emt 0:02:35]} Nxd6 {[%emt 0:01:26]} 32. g3 {[%emt 0:02:46]} Kg7 {[%emt 0:01:09]} 33. Ne5 {[%emt 0:01:16]} Re7 {[%emt 0:00:15]} 34. Rd5 {[%emt 0:01:38]} Nf7 {[%emt 0:00:44]} 35. Rxd8 {[%emt 0:00:16]} Nxd8 {[%emt 0:00:26]} 36. Rd6 {[%emt 0:03:00]} Rxe5 {[%emt 0:01:24]} 37. Rxd8 {[%emt 0:00:12]} Re2 {[%emt 0:00:21]} 38. Rd7+ {[%emt 0:01:51]} Kf6 {[%emt 0:01:27]} 39. Rxh7 {[%emt 0:01:53]} Rxb2 {[%emt 0:00:07]} 40. Ra7 {[%emt 0:00:08]} Rb1+ {[%emt 0:00:06]} 41. Kg2 {[%emt 0:30:06]} Ra1 {[%emt 0:30:14]} 42. Rb7 {[%emt 0:01:03]} Rxa2 {[%emt 0:00:30]} 43. Rxb4 {[%emt 0:00:03]} g5 {[%emt 0:00:12]} 44. h4 {[%emt 0:00:52]} gxh4 {[%emt 0:00:06]} 45. Rxh4 {[%emt 0:00:03]} Kg5 {[%emt 0:00:36]} 46. Rf4 {[%emt 0:01:15]} Rb2 {[%emt 0:00:50]} 47. Kh3 {[%emt 0:00:49]} Rc2 {[%emt 0:01:21]} 48. Rf8 {[%emt 0:00:14]} Rc1 {[%emt 0:00:14]} 49. f4+ {[%emt 0:00:16]} Kg6 {[%emt 0:00:05]} 50. Kg4 {[%emt 0:00:29]} Rg1 {[%emt 0:00:09]} 51. Ra8 {[%emt 0:00:22]} Rf1 {[%emt 0:00:21]} 52. Ra6+ {[%emt 0:00:08]} Kg7 {[%emt 0:00:06]} 53. Kg5 {[%emt 0:00:13]} Rf3 {[%emt 0:00:09]} 54. Ra7+ {[%emt 0:00:14]} Kg8 {[%emt 0:00:05]} 55. g4 {[%emt 0:00:12]} Kf8 {[%emt 0:00:11]} 56. f5 {[%emt 0:00:15]} Rb3 {[%emt 0:00:12]} 57. f6 {[%emt 0:00:38]} Rb4 {[%emt 0:00:10]} 58. Kf5 {[%emt 0:00:29]} 1-0

[Event "Reykjavik Open 2025"]
[Site "Reykjavik"]
[Date "2025.04.11"]
[Round "4.25"]
[White "Dauth, Benjamin"]
[Black "Kadric, Denis"]
[Result "0-1"]
[Annotator "ChessBase"]
[ECO "C01"]
[WhiteElo "2228"]
[BlackElo "2533"]
[PlyCount "104"]
[EventDate "2025.04.09"]
[EventType "swiss"]
[EventCountry "ISL"]
[SourceTitle "playchess.com"]
[Source "ChessBase"]
[SourceQuality "1"]
[TimeControl "40/5400+30:1800+30"]

1. e4 {[%emt 0:00:06]} e6 {[%emt 0:00:44]} 2. d4 {[%emt 0:00:32]} d5 {[%emt 0:00:04]} 3. exd5 {[%emt 0:00:12]} exd5 {[%emt 0:00:07]} 4. Nf3 {[%emt 0:01:01]} Nc6 {[%emt 0:00:15]} 5. c3 {[%emt 0:00:20]} Bd6 {[%emt 0:00:13]} 6. Bd3 {[%emt 0:00:06]} Nge7 {[%emt 0:00:18]} 7. Nbd2 {[%emt 0:00:38]} Bg4 {[%emt 0:00:51]} 8. h3 {[%emt 0:00:21]} Bh5 {[%emt 0:00:05]} 9. Qb3 {[%emt 0:00:54]} Rb8 {[%emt 0:01:12]} 10. O-O {[%emt 0:00:11]} Qd7 {[%emt 0:01:20]} 11. Re1 {[%emt 0:00:26]} Bg6 {[%emt 0:05:08]} 12. Bxg6 {[%emt 0:01:56]} hxg6 {[%emt 0:00:03]} 13. Ne5 {[%emt 0:00:13]} Bxe5 {[%emt 0:01:54]} 14. dxe5 {[%emt 0:00:06]} g5 {[%emt 0:01:41]} 15. Nf3 {[%emt 0:00:47]} g4 {[%emt 0:01:09]} 16. e6 {[%emt 0:00:06]} fxe6 {[%emt 0:00:03]} 17. hxg4 {[%emt 0:00:04]} Qd6 {[%emt 0:03:59]} 18. Bg5 {[%emt 0:00:51]} O-O {[%emt 0:06:36]} 19. Rad1 {[%emt 0:03:27]} Rbe8 {[%emt 0:06:34]} 20. c4 {[%emt 0:07:15]} dxc4 {[%emt 0:05:57]} 21. Qxc4 {[%emt 0:03:13]} Nd5 {[%emt 0:00:05]} 22. a3 {[%emt 0:01:07]} Nd8 {[%emt 0:08:48]} 23. Bxd8 {[%emt 0:08:59]} Qxd8 {[%emt 0:04:11]} 24. Rxe6 {[%emt 0:05:01]} Rxe6 {[%emt 0:00:02]} 25. Rxd5 {[%emt 0:00:08]} Rc6 {[%emt 0:00:01]} 26. Rc5+ {[%emt 0:00:31]} Kh8 {[%emt 0:00:05]} 27. Rxc6 {[%emt 0:04:23]} bxc6 {[%emt 0:01:06]} 28. Ne5 {[%emt 0:00:31]} Qd1+ {[%emt 0:08:11]} 29. Kh2 {[%emt 0:00:51]} Rxf2 {[%emt 0:00:41]} 30. Nf7+ {[%emt 0:04:53]} Kg8 {[%emt 0:09:55]} 31. Nh6+ {[%emt 0:00:48]} Kf8 {[%emt 0:03:04]} 32. Qg8+ {[%emt 0:00:26]} Ke7 {[%emt 0:00:01]} 33. Nf5+ {[%emt 0:02:27]} Rxf5 {[%emt 0:00:55]} 34. gxf5 {[%emt 0:00:06]} Qd6+ {[%emt 0:00:17]} 35. Kh1 {[%emt 0:01:54]} Kf6 {[%emt 0:00:06]} 36. Qe8 {[%emt 0:03:02]} Kxf5 {[%emt 0:04:41]} 37. Qf7+ {[%emt 0:00:15]} Qf6 {[%emt 0:00:07]} 38. Qxc7 {[%emt 0:00:35]} Qh4+ {[%emt 0:01:44]} 39. Kg1 {[%emt 0:00:07]} Qe1+ {[%emt 0:00:01]} 40. Kh2 {[%emt 0:00:09]} Qe5+ {[%emt 0:01:15]} 41. Qxe5+ {[%emt 0:30:08]} Kxe5 {[%emt 0:30:02]} 42. Kg3 {[%emt 0:01:56]} Kd4 {[%emt 0:03:46]} 43. Kf4 {[%emt 0:03:01]} Kc4 {[%emt 0:00:03]} 44. Ke5 {[%emt 0:00:46]} Kb3 {[%emt 0:00:02]} 45. Kd6 {[%emt 0:00:05]} Kxb2 {[%emt 0:00:03]} 46. Kxc6 {[%emt 0:00:07]} Kxa3 {[%emt 0:00:02]} 47. Kb5 {[%emt 0:00:07]} Kb3 {[%emt 0:00:04]} 48. Ka6 {[%emt 0:00:05]} Kc4 {[%emt 0:00:05]} 49. Kxa7 {[%emt 0:00:06]} Kd4 {[%emt 0:00:16]} 50. Kb6 {[%emt 0:00:08]} g5 {[%emt 0:00:16]} 51. Kc6 {[%emt 0:00:38]} g4 {[%emt 0:00:11]} 52. Kd6 {[%emt 0:00:21]} g3 {[%emt 0:00:00]} 0-1

[Event "Reykjavik Open 2025"]
[Site "Reykjavik"]
[Date "2025.04.11"]
[Round "4.26"]
[White "Khaledi, Omid"]
[Black "Sivuk, Vitaly"]
[Result "0-1"]
[Annotator "ChessBase"]
[ECO "B14"]
[WhiteElo "2228"]
[BlackElo "2505"]
[PlyCount "90"]
[EventDate "2025.04.09"]
[EventType "swiss"]
[EventCountry "ISL"]
[SourceTitle "playchess.com"]
[Source "ChessBase"]
[SourceQuality "1"]
[TimeControl "40/5400+30:1800+30"]

1. e4 {[%emt 0:00:35]} c5 {[%emt 0:00:13]} 2. c3 {[%emt 0:00:20]} d5 {[%emt 0:00:19]} 3. exd5 {[%emt 0:00:02]} Nf6 {[%emt 0:00:13]} 4. Nf3 {[%emt 0:06:27]} Nxd5 {[%emt 0:00:14]} 5. d4 {[%emt 0:00:09]} cxd4 {[%emt 0:00:41]} 6. cxd4 {[%emt 0:00:18]} g6 {[%emt 0:01:25]} 7. Nc3 {[%emt 0:00:39]} Bg7 {[%emt 0:00:33]} 8. Qb3 {[%emt 0:01:05]} Nxc3 {[%emt 0:10:06]} 9. bxc3 {[%emt 0:00:13]} O-O {[%emt 0:00:07]} 10. Be2 {[%emt 0:02:32]} Qc7 {[%emt 0:03:19]} 11. O-O {[%emt 0:12:08]} Nc6 {[%emt 0:01:50]} 12. Bg5 {[%emt 0:10:50]} Be6 {[%emt 0:08:15]} 13. Qa3 {[%emt 0:00:44]} Rfe8 {[%emt 0:01:47]} 14. Rfe1 {[%emt 0:02:48]} Bd5 {[%emt 0:11:35]} 15. Nd2 {[%emt 0:14:43]} h6 {[%emt 0:04:04]} 16. Bh4 {[%emt 0:07:34]} Rac8 {[%emt 0:07:01]} 17. Nf1 {[%emt 0:01:47]} f5 {[%emt 0:02:06]} 18. f3 {[%emt 0:10:39]} Bf7 {[%emt 0:02:38]} 19. Rad1 {[%emt 0:03:49]} a6 {[%emt 0:00:54]} 20. Qb2 {[%emt 0:16:39]} Na5 {[%emt 0:01:22]} 21. Rc1 {[%emt 0:00:27]} b5 {[%emt 0:02:24]} 22. Nd2 {[%emt 0:00:59]} e5 {[%emt 0:00:41]} 23. Bf2 {[%emt 0:01:32]} exd4 {[%emt 0:04:48]} 24. cxd4 {[%emt 0:00:21]} Qd6 {[%emt 0:00:16]} 25. Bf1 {[%emt 0:00:45]} Rxc1 {[%emt 0:01:00]} 26. Rxc1 {[%emt 0:00:23]} Rd8 {[%emt 0:00:17]} 27. Nb3 {[%emt 0:02:33]} Nxb3 {[%emt 0:11:43]} 28. axb3 {[%emt 0:00:01]} Qb4 {[%emt 0:00:24]} 29. Rc6 {[%emt 0:00:40]} Rxd4 {[%emt 0:01:00]} 30. Rxa6 {[%emt 0:02:20]} Rd2 {[%emt 0:07:21]} 31. Qa3 {[%emt 0:01:01]} Qxa3 {[%emt 0:12:00]} 32. Rxa3 {[%emt 0:00:02]} b4 {[%emt 0:00:11]} 33. Ra8+ {[%emt 0:00:12]} Kh7 {[%emt 0:00:05]} 34. Be3 {[%emt 0:00:38]} Rd1 {[%emt 0:04:33]} 35. Rb8 {[%emt 0:00:57]} Bc3 {[%emt 0:01:01]} 36. Rb7 {[%emt 0:00:24]} Kg8 {[%emt 0:00:08]} 37. Kf2 {[%emt 0:01:06]} Bxb3 {[%emt 0:00:28]} 38. Bc5 {[%emt 0:00:32]} Rb1 {[%emt 0:01:44]} 39. Bd3 {[%emt 0:00:34]} Rb2+ {[%emt 0:00:13]} 40. Kf1 {[%emt 0:00:30]} Bd5 {[%emt 0:00:53]} 41. Rb8+ {[%emt 0:30:29]} Kf7 {[%emt 0:30:19]} 42. Bb5 {[%emt 0:00:18]} b3 {[%emt 0:00:35]} 43. Rd8 {[%emt 0:00:00]} Be6 {[%emt 0:00:00]} 44. Rd3 {[%emt 0:00:00]} Rb1+ {[%emt 0:00:00]} 45. Kf2 {[%emt 0:00:00]} b2 {[%emt 0:00:00]} 0-1

[Event "Reykjavik Open 2025"]
[Site "Reykjavik"]
[Date "2025.04.11"]
[Round "4.27"]
[White "Papp, Gabor"]
[Black "Fodor, Balazs"]
[Result "1-0"]
[Annotator "ChessBase"]
[ECO "B95"]
[WhiteElo "2502"]
[BlackElo "2206"]
[PlyCount "59"]
[EventDate "2025.04.09"]
[EventType "swiss"]
[EventCountry "ISL"]
[SourceTitle "playchess.com"]
[Source "ChessBase"]
[SourceQuality "1"]
[TimeControl "40/5400+30:1800+30"]

1. e4 {[%emt 0:00:33]} c5 {[%emt 0:00:09]} 2. Nf3 {[%emt 0:00:11]} d6 {[%emt 0:00:10]} 3. d4 {[%emt 0:00:17]} cxd4 {[%emt 0:00:07]} 4. Nxd4 {[%emt 0:00:06]} Nf6 {[%emt 0:00:09]} 5. Nc3 {[%emt 0:00:05]} a6 {[%emt 0:00:05]} 6. Bg5 {[%emt 0:00:28]} e6 {[%emt 0:00:19]} 7. Qf3 {[%emt 0:00:14]} Be7 {[%emt 0:03:01]} 8. O-O-O {[%emt 0:00:28]} Qc7 {[%emt 0:08:34]} 9. g4 {[%emt 0:01:13]} Nbd7 {[%emt 0:01:51]} 10. Bxf6 {[%emt 0:09:05]} Bxf6 {[%emt 0:02:25]} 11. Qe3 {[%emt 0:00:05]} Rb8 {[%emt 0:10:51]} 12. g5 {[%emt 0:03:14]} Be7 {[%emt 0:00:40]} 13. f4 {[%emt 0:04:12]} b5 {[%emt 0:03:34]} 14. Bd3 {[%emt 0:02:01]} Nb6 {[%emt 0:07:56]} 15. h4 {[%emt 0:10:16]} Nc4 {[%emt 0:14:37]} 16. Bxc4 {[%emt 0:06:35]} bxc4 {[%emt 0:00:09]} 17. e5 {[%emt 0:29:57]} d5 {[%emt 0:04:04]} 18. h5 {[%emt 0:02:56]} Qb6 {[%emt 0:05:22]} 19. b3 {[%emt 0:00:05]} cxb3 {[%emt 0:11:37]} 20. axb3 {[%emt 0:01:52]} Bd7 {[%emt 0:00:29]} 21. g6 {[%emt 0:00:38]} fxg6 {[%emt 0:00:36]} 22. hxg6 {[%emt 0:00:19]} h6 {[%emt 0:00:05]} 23. f5 {[%emt 0:01:26]} Rc8 {[%emt 0:16:25]} 24. f6 {[%emt 0:03:49]} Bb4 {[%emt 0:00:09]} 25. fxg7 {[%emt 0:07:20]} Rg8 {[%emt 0:00:05]} 26. Rxh6 {[%emt 0:00:59]} Rxc3 {[%emt 0:04:23]} 27. Rh8 {[%emt 0:00:59]} Rxe3 {[%emt 0:01:33]} 28. Rxg8+ {[%emt 0:00:04]} Ke7 {[%emt 0:00:05]} 29. Ra8 {[%emt 0:00:06]} Qa5 {[%emt 0:04:02]} 30. g8=N# {[%emt 0:00:12]} 1-0

[Event "Reykjavik Open 2025"]
[Site "Reykjavik"]
[Date "2025.04.11"]
[Round "4.28"]
[White "Bailet, Pierre"]
[Black "Kracht, Raphael"]
[Result "1/2-1/2"]
[Annotator "ChessBase"]
[ECO "A07"]
[WhiteElo "2495"]
[BlackElo "2196"]
[PlyCount "48"]
[EventDate "2025.04.09"]
[EventType "swiss"]
[EventCountry "ISL"]
[SourceTitle "playchess.com"]
[Source "ChessBase"]
[SourceQuality "1"]
[TimeControl "40/5400+30:1800+30"]

1. g3 {[%emt 0:00:04]} d5 {[%emt 0:16:49]} 2. Nf3 {[%emt 0:00:16]} Nf6 {[%emt 0:00:07]} 3. Bg2 {[%emt 0:00:09]} e6 {[%emt 0:00:04]} 4. O-O {[%emt 0:00:23]} Be7 {[%emt 0:00:22]} 5. d3 {[%emt 0:01:05]} O-O {[%emt 0:00:06]} 6. a4 {[%emt 0:01:05]} c5 {[%emt 0:01:34]} 7. e4 {[%emt 0:00:36]} Nc6 {[%emt 0:04:45]} 8. Bf4 {[%emt 0:00:33]} dxe4 {[%emt 0:21:10]} 9. dxe4 {[%emt 0:00:21]} Qxd1 {[%emt 0:01:50]} 10. Rxd1 {[%emt 0:00:09]} Nxe4 {[%emt 0:00:33]} 11. Na3 {[%emt 0:11:18]} Nf6 {[%emt 0:01:31]} 12. Ne5 {[%emt 0:07:55]} Nd5 {[%emt 0:04:41]} 13. Nac4 {[%emt 0:18:23]} Nd4 {[%emt 0:08:10]} 14. Rd2 {[%emt 0:01:42]} b6 {[%emt 0:07:10]} 15. Be3 {[%emt 0:05:50]} Ba6 {[%emt 0:07:52]} 16. Bxd4 {[%emt 0:09:26]} cxd4 {[%emt 0:00:20]} 17. Rxd4 {[%emt 0:03:47]} Rac8 {[%emt 0:07:10]} 18. b3 {[%emt 0:19:21]} Bf6 {[%emt 0:04:59]} 19. Re1 {[%emt 0:00:55]} Rfd8 {[%emt 0:01:22]} 20. Rd2 {[%emt 0:01:12]} Bxc4 {[%emt 0:04:45]} 21. bxc4 {[%emt 0:00:57]} Bxe5 {[%emt 0:03:11]} 22. Rxe5 {[%emt 0:00:10]} Rxc4 {[%emt 0:00:06]} 23. Bxd5 {[%emt 0:00:10]} exd5 {[%emt 0:00:03]} 24. Rdxd5 {[%emt 0:00:16]} Rf8 {[%emt 0:01:55]} 1/2-1/2